Cogmind - Beta 13 @@@ ROGUE MODE // 2024.04.06 @ 12:28:13 Player: JackieG Result: Self-destructed Performance ------------- Evolutions (2) 1000 Regions Visited (4) 800 Robots Destroyed (32) 160 Value Destroyed (942) 942 Prototype IDs (1) 20 Alien Tech Used (0) 0 Bonus (11) 11 TOTAL SCORE: 2933 Bonus ------- High Alert Combat Kills 11 Cogmind --------- Core Integrity 459/550 Matter 99/300 Energy 250/250 System Corruption 0% Temperature Warm (199) Movement Treading (260) Ox1 Location -8/Materials Parts ------- > --- POWER (1) -------- Ion Engine > --- PROPULSION (3) --- Spiked Treads Titanium Leg Subdweller Monowheel > --- UTILITY (4) ------ Disposable Heat Sink Small Storage Unit Light Armor Plating Hardened Light Armor Plating > --- WEAPON (3) ------- Subdweller Laser Battle Cannon Assault Cannon > --- INVENTORY (8) ---- Light Ion Engine Improved Utility Shielding Improved Weapon Shielding Subdweller Machine Gun Subdweller Machine Gun Improved Assault Rifle Mining Laser Peak State ------------ > --- POWER ------------ Ion Engine > --- PROPULSION ------- Spiked Treads Titanium Leg Subdweller Monowheel > --- UTILITY ---------- Disposable Heat Sink Small Storage Unit Light Armor Plating Hardened Light Armor Plating > --- WEAPON ----------- Subdweller Laser Battle Cannon Assault Cannon > --- INVENTORY -------- Light Ion Engine Improved Utility Shielding Improved Weapon Shielding Subdweller Machine Gun Subdweller Machine Gun Improved Assault Rifle Mining Laser [Rating: 22] Favorites ----------- Power Ion Engine Engine Ion Engine Propulsion Light Treads Treads Light Treads Leg Aluminum Leg Wheel Subdweller Monowheel Utility Small Storage Unit Device Heat Sink Storage Small Storage Unit Protection Light Armor Plating Weapon Beam Cannon Energy Gun Subdweller Laser Energy Cannon Beam Cannon Ballistic Gun Assault Rifle Ballistic Cannon Battle Cannon Launcher Rocket Launcher Special Weapon Mining Laser Build | -11 -10 -10 -10 -8 ------- Run | Yrd Mat Min Sub Mat Slots Evolved 4 | . . . . 4 Power . | . . . . . Propulsion 1 | . . . . 1 Utility 2 | . . . . 2 Weapon 1 | . . . . 1 Parts Attached 30 | 6 3 1 12 8 Power 1 | 1 . . . . Engine 1 | 1 . . . . Core . | . . . . . Reactor . | . . . . . Propulsion 7 | 2 . . 4 1 Treads 3 | 2 . . 1 . Leg 2 | . . . 1 1 Wheel 2 | . . . 2 . Hover . | . . . . . Flight . | . . . . . Utility 6 | 1 1 . 1 3 Device 2 | . 1 . . 1 Storage 1 | 1 . . . . Processor . | . . . . . Hackware . | . . . . . Protection 3 | . . . 1 2 Artifact . | . . . . . Weapon 16 | 2 2 1 7 4 Energy Gun 2 | 1 . . . 1 Energy Cannon 1 | . 1 . . . Ballistic Gun 1 | 1 . . . . Ballistic Cannon 3 | . . . 1 2 Launcher 6 | . 1 1 3 1 Special Weapon 3 | . . . 3 . Impact Weapon . | . . . . . Slashing Weapon . | . . . . . Piercing Weapon . | . . . . . Special Melee Weapon . | . . . . . Unidentified Prototypes . | . . . . . Parts Lost 4 | . . . 3 1 Power . | . . . . . Propulsion 2 | . . . 2 . Utility . | . . . . . Weapon 2 | . . . 1 1 Highest Loss Streak 1 | . . . 1 1 To Critical Strikes . | . . . . . Average Slot Usage (%) 98 | . 96 100 98 93 Engine 13 | . 14 14 14 9 Treads 21 | . 28 28 12 9 Leg 2 | . . . 6 7 Wheel 3 | . . . 7 9 Device 10 | . 10 14 6 9 Storage 13 | . 14 14 14 9 Protection 4 | . . . 7 15 Energy Gun 1 | . 9 . . 6 Energy Cannon 10 | . 4 14 9 . Ballistic Cannon 2 | . . . 4 9 Launcher 11 | . 11 14 9 6 Special Weapon 1 | . . . 4 2 Naked Turns . | . . . . . Heaviest Build 31 | 14 17 18 20 31 Greatest Support 40 | 40 40 40 40 20 Greatest Overweight (x) 1 | 1 . . 1 1 Average Overweight (x) . | . . . . . Largest Inventory Capacity 8 | 8 8 8 8 8 Average Capacity 7 | 7 8 8 8 8 Most Carried 8 | 4 8 8 8 8 Average Carried 7 | 2 6 7 7 7 Final Capacity 8 | 8 8 8 8 8 Final Carried 8 | 4 8 8 8 7 Class Distribution -------------------- 93% | Mutant 6% | Tank Dominant Class ---------------- Mutant | -10/Materials Mutant | -10/Mines Mutant | -10/Subcaves Tank | -8/Materials Resources | -11 -10 -10 -10 -8 ----------- Run | Yrd Mat Min Sub Mat Matter Collected 875 | 195 178 14 420 68 Remotely . | . . . . . Salvage Created 759 | . 185 . 303 271 Parts 59 | . 22 . 24 13 Haulers Intercepted . | . . . . . Recyclers Shooed 1 | . . . . 1 Parts Field Recycled . | . . . . . Retrieved Matter . | . . . . . Parts Self-Destructed 7 | . . . 7 . Prevented . | . . . . . Kills | -11 -10 -10 -10 -8 ------- Run | Yrd Mat Min Sub Mat Combat Hostiles Destroyed 26 | . 7 . 14 5 Guns 2 | . 2 . . . Cannons 6 | . . . 4 2 AOE 18 | . 5 . 10 3 Classes Destroyed 7 | . 4 . 2 1 Builder 2 | . 1 . . 1 Recycler 1 | . . . . 1 Watcher 3 | . 2 . . 1 Swarmer 7 | . 3 . 4 . Grunt 9 | . 4 . . 5 Sentry 1 | . . . 1 . Subdweller 9 | . . . 9 . Best Kill Streak 5 | . 5 . 4 4 Combat Bots Only 4 | . 3 . 4 4 Max Kills in Single Turn 3 | . 2 . 3 2 Gunslinging . | . . . . . Exploded 3 | . 1 . 3 1 Melee . | . . . . . Uniques/NPCs Destroyed . | . . . . . Combat | -11 -10 -10 -10 -8 -------- Run | Yrd Mat Min Sub Mat Hostile Shots Fired 131 | . 21 . 75 35 Missed 51 | . 5 . 32 14 Damage Taken 1242 | . 170 . 676 396 Core 268 | . 23 . 154 91 Absorbed by Shields . | . . . . . Core Remaining (%) 64 | 100 . . 29 . Volleys Fired 80 | . 13 . 56 11 Largest 3 | . 2 . 2 3 Hottest 143 | . 90 . 139 143 Shots Fired 140 | . 24 . 83 33 Gun 22 | . 11 . . 11 Cannon 50 | . 4 . 33 13 Launcher 43 | . 9 . 25 9 Special 25 | . . . 25 . Kinetic 31 | . 2 . 16 13 Thermal 66 | . 13 . 42 11 Explosive 43 | . 9 . 25 9 Electromagnetic . | . . . . . Robot Hit Streak 7 | . 7 . 5 5 Robot Miss Streak 5 | . 5 . 4 4 Penetration Max . | . . . . . Secondary Targets . | . . . . . Shots Hit Robots 60 | . 10 . 32 18 Core Hits 59 | . 14 . 26 19 Critical Kills . | . . . . . Critical Parts Destroyed . | . . . . . Critical Strikes 3 | . 1 . 1 1 Burn 1 | . 1 . . . Blast 2 | . . . 1 1 Melee Attacks . | . . . . . Impact . | . . . . . Slashing . | . . . . . Piercing . | . . . . . Sneak Attacks . | . . . . . Combat Hostiles . | . . . . . Follow-up Attacks . | . . . . . Damage Inflicted 2902 | . 563 . 1375 964 Guns 134 | . 51 . . 83 Cannons 627 | . 17 . 351 259 Explosions 2141 | . 495 . 1024 622 Melee . | . . . . . Ramming . | . . . . . Kinetic 435 | . . . 176 259 Thermal 326 | . 68 . 175 83 Explosive 2141 | . 495 . 1024 622 Electromagnetic . | . . . . . Impact . | . . . . . Slashing . | . . . . . Piercing . | . . . . . Highest Corruption . | . . . . . Average Corruption . | . . . . . Corruption Purged . | . . . . . Corruption Blocked . | . . . . . Overload Shots . | . . . . . Overflow Damage 78 | . 35 . 34 9 Projectiles . | . . . . . Explosions 78 | . 35 . 34 9 Melee . | . . . . . Knockbacks 4 | . . . 2 2 Impact . | . . . . . Kinetic 4 | . . . 2 2 Secondary . | . . . . . Self-Inflicted Damage 94 | . 17 . 13 64 Shots 5 | . 1 . 1 3 Rammed . | . . . . . Targets Rammed . | . . . . . Kicked . | . . . . . Crushed . | . . . . . Highest Temperature 196 | . 18 . 3 196 Average Temperature 83 | . 8 . 3 113 Received Heat Transfer 396 | . 42 . 147 207 Siege Activations . | . . . . . Robots Corrupted . | . . . . . Combat Hostiles . | . . . . . Parts Fried . | . . . . . Impact Corruptions . | . . . . . Robots Melted . | . . . . . Combat Hostiles . | . . . . . Parts Melted 1 | . . . 1 . Heat Transferred 729 | . 259 . 370 100 Parts Sabotaged . | . . . . . Parts Stolen . | . . . . . Parts Stripped . | . . . . . Power Chain Reactions . | . . . . . Alert | -11 -10 -10 -10 -8 ------- Run | Yrd Mat Min Sub Mat Peak Influence 408 | . 307 119 . 408 Initial 215 | . . 119 . 215 Average 70 | . 130 17 . 316 Maximum Alert Level 2 | . 1 . . 2 Low Security (%) 82 | 100 65 100 . . Level 1 11 | . 34 . . 53 Level 2 6 | . . . . 46 Level 3 . | . . . . . Level 4 . | . . . . . Level 5 . | . . . . . High Security . | . . . . . Max Security . | . . . . . Squads Dispatched 5 | . 3 . . 2 Investigation 2 | . 2 . . . Extermination . | . . . . . Reinforcement 3 | . 1 . . 2 Assault . | . . . . . Garrison . | . . . . . Intercept . | . . . . . Searches Triggered . | . . . . . Construction Impeded 1 | . . . . 1 Haulers Reinforced . | . . . . . Active Scanning Responses . | . . . . . Cargo Convoy Interrupts . | . . . . . Stealth | -11 -10 -10 -10 -8 --------- Run | Yrd Mat Min Sub Mat Distress Signals 6 | . 2 . . 4 Communications Jammed . | . . . . . Distress Signals . | . . . . . Times Spotted 58 | . 13 . 32 13 Peak Tracking Total 5 | . 4 . 4 5 Tactical Retreats 3 | . 1 . 2 . Traps | -11 -10 -10 -10 -8 ------- Run | Yrd Mat Min Sub Mat Traps Triggered 2 | . 1 . 1 . Indirectly . | . . . . . Trap Hack Attempts . | . . . . . Triggered . | . . . . . Disarmed . | . . . . . Reprogrammed . | . . . . . Reused . | . . . . . Traps Extracted . | . . . . . Installed . | . . . . . Triggered . | . . . . . Machines | -11 -10 -10 -10 -8 ---------- Run | Yrd Mat Min Sub Mat Machines Disabled 5 | . . . 3 2 Max in Single Turn 2 | . . . 2 1 Machines Repaired . | . . . . . Machines Dismantled . | . . . . . Machines Sabotaged . | . . . . . Overloaded Fab Kills . | . . . . . Hacking | -11 -10 -10 -10 -8 --------- Run | Yrd Mat Min Sub Mat Machines Accessed 4 | . 1 . 1 2 Terminals 2 | . 1 . . 1 Fabricators . | . . . . . Repair Stations . | . . . . . Recycling Units . | . . . . . Scanalyzers 1 | . . . . 1 Garrison Access . | . . . . . Total Hacks 9 | . 3 . 2 4 Successful 7 | . 1 . 2 4 Failed 2 | . 2 . . . Catastrophic . | . . . . . Database Lockouts . | . . . . . Manual 2 | . . . 1 1 Terminals 5 | . 3 . . 2 Fabricators . | . . . . . Repair Stations . | . . . . . Recycling Units . | . . . . . Scanalyzers 2 | . . . . 2 Garrison Access . | . . . . . Terminal Hacks 4 | . 1 . 2 1 Record 3 | . 1 . 2 . Zone Layout 1 | . . . . 1 Fabricator Hacks . | . . . . . Repair Station Hacks . | . . . . . Recycling Unit Hacks . | . . . . . Scanalyzer 2 | . . . . 2 Insert Component 1 | . . . . 1 Analyze 1 | . . . . 1 Garrison Access Hacks . | . . . . . Unauthorized Hacks 1 | . . . . 1 Terminals 1 | . . . . 1 Botnet 1 | . . . . 1 Fabricators . | . . . . . Repair Stations . | . . . . . Recycling Units . | . . . . . Scanalyzers . | . . . . . Garrison Access . | . . . . . Data Cores Recovered . | . . . . . Used . | . . . . . Hacking Detections 3 | . 1 . . 2 Full Trace Events 1 | . 1 . . . Feedback Events . | . . . . . Feedback Blocked . | . . . . . Robot Schematics Acquired . | . . . . . Robots Built . | . . . . . Authchips . | . . . . . Time . | . . . . . Total Robot Build Rating . | . . . . . Part Schematics Acquired 1 | . . . . 1 Parts Built . | . . . . . Authchips . | . . . . . Time . | . . . . . Total Part Build Rating . | . . . . . Parts Repaired . | . . . . . Time . | . . . . . Parts Recycled . | . . . . . Recycled Matter . | . . . . . Retrieved Matter . | . . . . . Retrieved Components . | . . . . . Parts Scanalyzed 1 | . . . . 1 Part Schematics Acquired 1 | . . . . 1 Parts Damaged . | . . . . . Bothacking | -11 -10 -10 -10 -8 ------------ Run | Yrd Mat Min Sub Mat Used RIF Installer . | . . . . . Robots Hacked . | . . . . . Non-combat . | . . . . . Combat . | . . . . . Robot Hacks Applied . | . . . . . Relay Couplers Released . | . . . . . Fabnet Peak Effective % . | . . . . . Robots Rewired . | . . . . . Allies Hacked . | . . . . . Hacks Repelled . | . . . . . Allies | -11 -10 -10 -10 -8 -------- Run | Yrd Mat Min Sub Mat Total Allies 1 | . . 1 . . Largest Group 1 | . . 1 . . Highest-Rated Group 31 | . . 31 . . Highest-Rated Ally 31 | . . 31 . . Total Orders . | . . . . . Ally Attacks . | . . . . . Total Damage . | . . . . . Kills . | . . . . . Allies Corrupted . | . . . . . Allies Melted . | . . . . . Intel | -11 -10 -10 -10 -8 ------- Run | Yrd Mat Min Sub Mat Robot Analysis Total . | . . . . . Derelict Logs Recovered 1 | . . 1 . . Drone Launches . | . . . . . Drone Recoveries . | . . . . . Exploration | -11 -10 -10 -10 -8 ------------- Run | Yrd Mat Min Sub Mat Turns Passed 5355 | 86 360 2641 1766 502 Spaces Moved 3082 | 50 194 1649 987 202 Core 6 | 6 . . . . Treads 2863 | 44 194 1649 774 202 Legs 90 | . . . 90 . Wheels 123 | . . . 123 . Hover . | . . . . . Flight . | . . . . . Fastest Speed 50 | 50 160 160 110 160 Average Speed 162 | 148 160 160 156 221 Slowest Speed 260 | 160 160 160 190 260 Overloaded Moves . | . . . . . Propulsion Burnouts . | . . . . . Robots Hopped . | . . . . . Cave-ins Triggered . | . . . . . Exploration Rate (%) 41 | 5 37 99 51 15 Regions Visited 4 Branch Regions 2 Pre-discovered Areas . | . . . . . Known Exits Taken . | . . . . . Unknown Exits Taken 4 | 1 1 1 1 . Scrap Searched 8 | . . 1 7 . Spaces Dug . | . . . . . Terrain Destroyed 285 | . 60 . 158 67 Melee . | . . . . . Projectile 1 | . . . . 1 AOE 284 | . 60 . 158 66 Terrain Rammed . | . . . . . Walls Destroyed . | . . . . . Machines Disabled . | . . . . . Actions | -11 -10 -10 -10 -8 --------- Run | Yrd Mat Min Sub Mat Total 3237 | 59 220 1653 1074 231 Wait 11 | . 3 . 3 5 Move 3078 | 49 193 1648 986 202 Hop . | . . . . . Pick Up 20 | 4 5 1 7 3 Fast Attach 16 | 6 2 1 4 3 Attach 6 | . . . 2 4 Detach 4 | . 1 1 2 . Swap 8 | . 1 . 6 1 Drop 14 | . 2 2 8 2 Fire 80 | . 13 . 56 11 Melee . | . . . . . Ram . | . . . . . Kick . | . . . . . Crush . | . . . . . Escape Stasis . | . . . . . Rewire . | . . . . . Trap . | . . . . . Miscellaneous . | . . . . . Route ------- -11/Scrapyard -10/Materials -10/Mines (discovered 3 exits: [*Mat x2] / *Sub) -10/Subcaves (discovered 2 exits: *Mat / [*Rec]) -8/Materials History --------- Turn | Location | Event 17 | -11/Scrapyard | Discovered new exit (range 13) 87 | -11/Scrapyard | Entered Materials 304 | -10/Materials | Build established: Mutant 398 | -10/Materials | Discovered new exit (range 12) 447 | -10/Materials | Entered Mines 450 | -10/Mines | Received a Mining Laser from a helpful Derelict 497 | -10/Mines | Discovered new exit (range 12) 750 | -10/Mines | Received a Rocket Launcher from a helpful Derelict 797 | -10/Mines | Learned Materials stockpile data 1424 | -10/Mines | Discovered new exit (range 8) 1746 | -10/Mines | Discovered new exit (range 6) 3088 | -10/Mines | Entered Subcaves 4195 | -10/Subcaves | Ambushed by Subdweller buried in earth 4248 | -10/Subcaves | Core integrity fell below 50% 4343 | -10/Subcaves | Shifting Twisted Machinery released Sub. Machine Gun 4377 | -10/Subcaves | Shifting Twisted Machinery released Riot Gun 4410 | -10/Subcaves | Discovered new exit (range 12) 4595 | -10/Subcaves | Visited Clippyterm 4667 | -10/Subcaves | A swath of the cavern ceiling suddenly collapsed 4691 | -10/Subcaves | Shifting Twisted Machinery released Sub. Monowheel 4710 | -10/Subcaves | Discovered new exit (range 10) 4713 | -10/Subcaves | Shifting Twisted Machinery released Humpback 4784 | -10/Subcaves | Disturbed a concealed Subdweller 4854 | -10/Subcaves | Entered Materials 4854 | -8/Materials | Evolved 4 slots: Propulsion x1, Utility x2, Weapon x1 5292 | -8/Materials | Build established: Tank 5356 | -8/Materials | Self-destructed Last Messages --------------- Dropped Lgt. Armor Plating. Acquired Hrd. Light Armor Plating. W-25 Informer sends out distress signal. W-25 Informer destroyed. R-06 Scavenger destroyed. G-50 Soldier knocked back. U-05 Engineer destroyed. G-50 Soldier knocked back. G-50 Soldier destroyed. Electrolysis Chamber disabled. U-05 Engineer lays Concrete. Grenade Launcher destroyed. U-05 Engineer lays Concrete. G-47 Trooper Aluminum Leg blasted off. U-05 Engineer lays Concrete. W-25 Informer sends out distress signal. U-05 Engineer builds a Wall. Critical hit (Burn: +37). U-05 Engineer lays Concrete. U-05 Engineer builds a Wall. Map ----- +----------------------------------------------------+ | ???????????????????????????????? | | ???????????????????????????????? | | ???????????????????????????????? | | ???????????????????????????????? | | ???????????????????????????????? | | ???????????????????????????????? | | ???????????????????????????????? | | ???????????????????????????????? | | ???????????????????????????????? | | ???????????????????????????????? | | ???????????????????????????????? | | ???????????????????????????????? | | ???????????????????????????????? | | ???????????????????????????????? | | ???????????????????????????????? | | ???????????????????????????????? | | ???????????????????????????????? | | ???????????????????????????????? | | ???????????????????????????????? | | ???????????????????????????????? | | ???????????????????????????????? | | ???????????????????????????????? | | ##########???????!?????????????/ | | # #?????????????????????? | | # """ ! #?????????????????????? | | # """ @ #???####??????????????? | | # """ ] = [ ???????????????? | | # % ] g = ???????????? | | # """ !% =wgua ??????????? | | # """ * =#####?????????? | | # """ [ =% ???????????? | | # # ""??????????? | | ####### ## + """ ???????????? | | ??????# # """ "???????????? | | ???#### # Y ??????????????? | | ???# #?##??????????????? | | ???# ######+##?????????????????? | | ???# #?????????????????????????? | | ???# #?????????????????????????? | | ???# #?????????????????????????? | | ???# #?????????????????????????? | | ???# #?????????????????????????? | | ???# #?????????????????????????? | | ???# #?????????????#?????? ???? | | ???# #???????###### #### ??? | | ???# ######### ??? | | ???# ## "" # ?? | | ???# ## ""S # | | ???# ## "" + ##+ # ### | | ???# ## # [ ##+##### | +----------------------------------------------------+ Best States ------------- Heat Dissipation 35 Coolant Potential 50 Energy Generation 10 Energy Capacity 250 Matter Stores 300 Matter Capacity 300 Sight Range 16 Terrain Scan Density 10 Armor Coverage 300 Evasion (%) 40 Recoil Reduction 2 Item Schematics ----------------- Imp. Assault Rifle | -8/Materials | Scanalyzed Robot Schematics ------------------ None Fabricated ------------ Nothing Alien Tech Used ----------------- None Achievements -------------- None Challenges ------------ None Game ------ Seed HoverGunMount Manual? 0 Play Time 00:31:50 Cumulative 14.6 hours Start 2024.04.06 @ 11:56:41 End 2024.04.06 @ 12:28:13 Sessions 1 Manual Loads 0 Difficulty Rogue Special Mode None Game No. 16 Rogue 13 Adventurer 3 Explorer 0 Win Type - Total 0 Types 0/0/0/0/0/0/0/0/0 Lore% 19 Gallery% 21 Achievement% 18 Wizard Run 0 Options --------- Layout 1 ASCII 0 Keyboard 0 Movement Arrows Keybinds 0 Fullscreen 1 Font 24/Smallcaps Map View 50x35 Zoom Use 0% Tactical HUD 0 Map Filters NONE Filters NONE Steam 1 RUN: 574ccda3-c2db-4e54-89d4-c976297020f2